[Event "11th LCC FIDE Open 2019"]
[Site "London"]
[Date "2019.11.30"]
[Round "3.1"]
[White "Aravindh, Chithambaram VR."]
[Black "Percivaldi, Martin"]
[Result "1-0"]
[ECO "C42"]
[WhiteElo "2605"]
[BlackElo "2384"]
[Annotator "RC"]
[PlyCount "137"]
[EventDate "2019.11.29"]
[EventType "swiss"]
[EventCountry "ENG"]
[SourceTitle "playchess.com"]
[Source "ChessBase"]
[SourceQuality "1"]
[TimeControl "40/5400+30:1800+30"]

1. e4 {[%emt 0:01:00]} e5 {[%emt 0:02:05]} 2. Nf3 {[%emt 0:00:22]} Nf6 {[%emt 0:00:55]} 3. Nxe5 {[%emt 0:02:04]} d6 {[%emt 0:00:09]} 4. Nf3 {[%emt 0:00:11]} Nxe4 {[%emt 0:00:11]} 5. c4 {[%emt 0:02:10]} Nc6 {[%emt 0:01:37]} 6. Nc3 {[%emt 0:01:25]} Nxc3 {[%emt 0:01:00]} 7. dxc3 {[%emt 0:00:05]} Be7 {[%emt 0:01:46]} 8. Bd3 {[%emt 0:02:20]} Be6 {[%emt 0:02:27]} 9. O-O {[%emt 0:04:00]} O-O {[%emt 0:02:38]} 10. Qc2 {[%emt 0:03:56]} h6 {[%emt 0:01:37]} 11. Bf4 {[%emt 0:00:32]} Qd7 {[%emt 0:05:02]} 12. Rad1 {[%emt 0:01:01]} Rad8 {[%emt 0:03:42]} 13. Rfe1 {[%emt 0:09:20]} Qc8 {[%emt 0:11:54]} 14. Bh7+ {[%emt 0:02:44]} Kh8 {[%emt 0:00:17]} 15. Be4 {[%emt 0:00:11]} Rfe8 {[%emt 0:04:55]} 16. b3 {[%emt 0:04:15]} Kg8 {[%emt 0:10:14]} 17. Re2 {[%emt 0:10:47]} Bf6 {[%emt 0:01:55]} 18. Rde1 {[%emt 0:00:32]} Ne7 {[%emt 0:05:46]} 19. Bd2 {[%emt 0:05:26]} Kf8 {[%emt 0:01:50]} 20. Nd4 {[%emt 0:09:35]} Bxd4 {[%emt 0:03:04]} 21. cxd4 {[%emt 0:00:13]} Bf5 {[%emt 0:01:00]} 22. d5 {[%emt 0:02:53]} Bxe4 {[%emt 0:01:01]} 23. Rxe4 {[%emt 0:00:05]} Ng6 {[%emt 0:00:39]} 24. Bc3 {[%emt 0:03:31]} Kg8 {[%emt 0:10:07]} 25. h3 {[%emt 0:10:55]} Qd7 {[%emt 0:02:12]} 26. Qe2 {[%emt 0:03:06]} Rxe4 {[%emt 0:00:30]} 27. Qxe4 {[%emt 0:00:03]} b6 {[%emt 0:00:59]} 28. Re3 {[%emt 0:01:59]} Rf8 {[%emt 0:06:40]} 29. Kh2 {[%emt 0:07:39]} Kh7 {[%emt 0:03:42]} 30. Qd4 {[%emt 0:01:52]} f6 {[%emt 0:02:28]} 31. Re6 {[%emt 0:02:51]} Rf7 {[%emt 0:06:08]} 32. Qd3 {[%emt 0:01:38]} f5 {[%emt 0:00:36]} 33. g3 {[%emt 0:00:26]} Nf8 {[%emt 0:00:46]} 34. Qe3 {[%emt 0:00:29]} a5 {[%emt 0:00:31]} 35. h4 {[%emt 0:01:54]} Ng6 {[%emt 0:02:12]} 36. h5 {[%emt 0:02:21]} Ne7 {[%emt 0:00:20]} 37. Qd3 {[%emt 0:01:38]} Qd8 {[%emt 0:00:12]} 38. Kg2 {[%emt 0:01:04]} Ng8 {[%emt 0:01:34]} 39. f4 {[%emt 0:00:14]} Kh8 {[%emt 0:01:24]} 40. Kf3 {[%emt 0:00:56]} Qf8 {[%emt 0:01:04]} 41. Qe3 {[%emt 0:09:24]} Rd7 {[%emt 0:05:41]} 42. g4 {[%emt 0:05:03]} fxg4+ {[%emt 0:01:55]} 43. Kxg4 {[%emt 0:00:07]} Qf7 {[%emt 0:08:38]} 44. Qe4 {[%emt 0:07:49]} Rd8 {[%emt 0:01:19]} 45. Rg6 {[%emt 0:01:35]} Rd7 {[%emt 0:04:10]} 46. Rxg7 {[%emt 0:00:44]} Qxg7+ {[%emt 0:00:08]} 47. Bxg7+ {[%emt 0:00:05]} Rxg7+ {[%emt 0:00:19]} 48. Kf3 {[%emt 0:00:04]} Rf7 {[%emt 0:00:22]} 49. Qg6 {[%emt 0:00:10]} Rf6 {[%emt 0:00:21]} 50. Qg4 {[%emt 0:00:05]} Rf7 {[%emt 0:00:15]} 51. Ke2 {[%emt 0:00:29]} Rg7 {[%emt 0:00:12]} 52. Qf5 {[%emt 0:00:25]} Re7+ {[%emt 0:00:27]} 53. Kd3 {[%emt 0:00:06]} Kg7 {[%emt 0:00:06]} 54. Kc3 {[%emt 0:00:28]} Rf7 {[%emt 0:00:15]} 55. Qg4+ {[%emt 0:00:08]} Kf8 {[%emt 0:00:14]} 56. Qc8+ {[%emt 0:00:57]} Kg7 {[%emt 0:00:07]} 57. Kb2 {[%emt 0:00:06]} Re7 {[%emt 0:00:59]} 58. Ka3 {[%emt 0:00:19]} Rf7 {[%emt 0:00:06]} 59. Ka4 {[%emt 0:00:12]} Re7 {[%emt 0:00:19]} 60. Kb5 {[%emt 0:00:10]} Rf7 {[%emt 0:00:06]} 61. Ka6 {[%emt 0:01:15]} Re7 {[%emt 0:00:51]} 62. Kb7 {[%emt 0:00:08]} Nf6 {[%emt 0:01:49]} 63. Qf5 {[%emt 0:00:11]} Ng8 {[%emt 0:00:06]} 64. Qg4+ {[%emt 0:00:12]} Kf8 {[%emt 0:00:19]} 65. Kc8 {[%emt 0:00:27]} Rg7 {[%emt 0:01:19]} 66. Qe6 {[%emt 0:00:56]} Re7 {[%emt 0:00:09]} 67. Qh3 {[%emt 0:00:05]} Rf7 {[%emt 0:00:35]} 68. Kd8 {[%emt 0:00:27]} Nf6 {[%emt 0:00:58]} 69. Qf5 {[%emt 0:00:40]} 1-0

[Event "11th LCC FIDE Open 2019"]
[Site "London"]
[Date "2019.11.30"]
[Round "3.3"]
[White "Praggnanandhaa R"]
[Black "Bates, Richard A"]
[Result "1-0"]
[ECO "B91"]
[WhiteElo "2586"]
[BlackElo "2342"]
[Annotator "RC"]
[PlyCount "79"]
[EventDate "2019.11.29"]
[EventType "swiss"]
[EventCountry "ENG"]
[SourceTitle "playchess.com"]
[Source "ChessBase"]
[SourceQuality "1"]
[TimeControl "40/5400+30:1800+30"]

1. e4 {[%emt 0:02:07]} c5 {[%emt 0:00:00]} 2. Nf3 {[%emt 0:01:12]} d6 {[%emt 0:00:00]} 3. d4 {[%emt 0:00:04]} cxd4 {[%emt 0:00:00]} 4. Nxd4 {[%emt 0:00:05]} Nf6 {[%emt 0:00:02]} 5. Nc3 {[%emt 0:00:03]} a6 {[%emt 0:00:10]} 6. g3 {[%emt 0:00:44]} e5 {[%emt 0:01:07]} 7. Nde2 {[%emt 0:00:26]} Nbd7 {[%emt 0:00:39]} 8. a4 {[%emt 0:01:35]} b6 {[%emt 0:00:44]} 9. Nd5 {[%emt 0:12:09]} Nxd5 {[%emt 0:10:21]} 10. Qxd5 {[%emt 0:00:48]} Rb8 {[%emt 0:00:47]} 11. Nc3 {[%emt 0:02:38]} Nc5 {[%emt 0:08:01]} 12. Bg2 {[%emt 0:05:54]} Be7 {[%emt 0:01:26]} 13. O-O {[%emt 0:03:43]} O-O {[%emt 0:07:15]} 14. Be3 {[%emt 0:01:20]} Kh8 {[%emt 0:02:53]} 15. Qd2 {[%emt 0:06:10]} f5 {[%emt 0:02:24]} 16. exf5 {[%emt 0:01:00]} Bxf5 {[%emt 0:00:29]} 17. Nd5 {[%emt 0:00:56]} Qd7 {[%emt 0:34:23]} 18. b4 {[%emt 0:04:36]} Ne4 {[%emt 0:01:30]} 19. Qe2 {[%emt 0:01:32]} Nf6 {[%emt 0:13:55]} 20. Nxb6 {[%emt 0:13:02]} Qc7 {[%emt 0:02:43]} 21. Qxa6 {[%emt 0:02:11]} Qxc2 {[%emt 0:00:06]} 22. Qa7 {[%emt 0:05:28]} Rbe8 {[%emt 0:03:07]} 23. Rac1 {[%emt 0:04:39]} Qb3 {[%emt 0:01:08]} 24. Rc7 {[%emt 0:11:19]} Qe6 {[%emt 0:01:55]} 25. a5 {[%emt 0:03:54]} Be4 {[%emt 0:01:57]} 26. Bxe4 {[%emt 0:02:12]} Nxe4 {[%emt 0:00:07]} 27. Qb7 {[%emt 0:01:14]} Nf6 {[%emt 0:02:17]} 28. Bg5 {[%emt 0:05:15]} e4 {[%emt 0:01:21]} 29. a6 {[%emt 0:03:45]} Qh3 {[%emt 0:00:54]} 30. Bxf6 {[%emt 0:01:23]} Bxf6 {[%emt 0:00:05]} 31. Nd7 {[%emt 0:00:46]} e3 {[%emt 0:01:32]} 32. Qg2 {[%emt 0:00:54]} exf2+ {[%emt 0:00:17]} 33. Kh1 {[%emt 0:00:07]} Qf5 {[%emt 0:01:26]} 34. Nxf8 {[%emt 0:00:57]} Re1 {[%emt 0:00:02]} 35. Rc1 {[%emt 0:00:51]} Bc3 {[%emt 0:00:07]} 36. a7 {[%emt 0:00:30]} Rxc1 {[%emt 0:00:03]} 37. Rxc1 {[%emt 0:01:02]} Be1 {[%emt 0:00:06]} 38. Ng6+ {[%emt 0:00:03]} hxg6 {[%emt 0:00:13]} 39. a8=Q+ {[%emt 0:00:05]} Kh7 {[%emt 0:00:05]} 40. Qa6 {[%emt 0:00:20]} 1-0

[Event "11th LCC FIDE Open 2019"]
[Site "London"]
[Date "2019.11.30"]
[Round "3.4"]
[White "Zujev, Oleg"]
[Black "Smirnov, Anton"]
[Result "0-1"]
[ECO "D10"]
[WhiteElo "2316"]
[BlackElo "2573"]
[Annotator "RC"]
[PlyCount "68"]
[EventDate "2019.11.29"]
[EventType "swiss"]
[EventCountry "ENG"]
[SourceTitle "playchess.com"]
[Source "ChessBase"]
[SourceQuality "1"]
[TimeControl "40/5400+30:1800+30"]

1. d4 {[%emt 0:00:00]} d5 {[%emt 0:03:07]} 2. c4 {[%emt 0:00:00]} c6 {[%emt 0:00:03]} 3. Nc3 {[%emt 0:00:00]} dxc4 {[%emt 0:00:04]} 4. e3 {[%emt 0:00:24]} b5 {[%emt 0:00:09]} 5. a4 {[%emt 0:00:17]} b4 {[%emt 0:00:04]} 6. Ne4 {[%emt 0:00:25]} Qd5 {[%emt 0:00:06]} 7. Ng3 {[%emt 0:00:34]} Nf6 {[%emt 0:00:25]} 8. Be2 {[%emt 0:01:14]} e5 {[%emt 0:00:26]} 9. Nf3 {[%emt 0:02:33]} exd4 {[%emt 0:00:12]} 10. exd4 {[%emt 0:00:38]} Bd6 {[%emt 0:00:06]} 11. Nf1 {[%emt 0:02:09]} c3 {[%emt 0:00:43]} 12. bxc3 {[%emt 0:03:09]} Ne4 {[%emt 0:00:07]} 13. c4 {[%emt 0:05:47]} Qe6 {[%emt 0:00:02]} 14. Bb2 {[%emt 0:03:43]} O-O {[%emt 0:09:56]} 15. Ne3 {[%emt 0:08:06]} Bf4 {[%emt 0:05:52]} 16. Qb3 {[%emt 0:06:36]} Re8 {[%emt 0:06:19]} 17. Ne5 {[%emt 0:23:23]} Nd7 {[%emt 0:09:36]} 18. Bg4 {[%emt 0:10:21]} Qh6 {[%emt 0:06:11]} 19. Bxd7 {[%emt 0:10:16]} Bxd7 {[%emt 0:00:39]} 20. Qd3 {[%emt 0:00:55]} Bxe5 {[%emt 0:08:15]} 21. dxe5 {[%emt 0:00:09]} Qf4 {[%emt 0:00:43]} 22. O-O {[%emt 0:01:25]} Rad8 {[%emt 0:03:26]} 23. Rad1 {[%emt 0:01:31]} h6 {[%emt 0:01:29]} 24. a5 {[%emt 0:02:09]} Bg4 {[%emt 0:07:56]} 25. Qxd8 {[%emt 0:00:58]} Rxd8 {[%emt 0:00:01]} 26. Rxd8+ {[%emt 0:00:08]} Kh7 {[%emt 0:00:02]} 27. Nxg4 {[%emt 0:02:35]} Qxg4 {[%emt 0:01:15]} 28. f3 {[%emt 0:02:32]} Qg5 {[%emt 0:00:03]} 29. Rd3 {[%emt 0:00:43]} Nc5 {[%emt 0:00:07]} 30. f4 {[%emt 0:02:25]} Qf5 {[%emt 0:00:07]} 31. Rd6 {[%emt 0:04:40]} Nd3 {[%emt 0:01:27]} 32. Bd4 {[%emt 0:03:14]} c5 {[%emt 0:00:27]} 33. Be3 {[%emt 0:00:37]} Qe4 {[%emt 0:00:40]} 34. Rf3 {[%emt 0:01:04]} b3 {[%emt 0:00:07]} 0-1

[Event "11th LCC FIDE Open 2019"]
[Site "London"]
[Date "2019.11.30"]
[Round "3.8"]
[White "Cumming, Rhys"]
[Black "Petrov, Martin"]
[Result "0-1"]
[ECO "B51"]
[WhiteElo "2284"]
[BlackElo "2497"]
[Annotator "RC"]
[PlyCount "60"]
[EventDate "2019.11.29"]
[EventType "swiss"]
[EventCountry "ENG"]
[SourceTitle "playchess.com"]
[Source "ChessBase"]
[SourceQuality "1"]
[TimeControl "40/5400+30:1800+30"]

1. e4 {[%emt 0:03:18]} c5 {[%emt 0:00:00]} 2. Nf3 {[%emt 0:00:22]} d6 {[%emt 0:01:48]} 3. Bb5+ {[%emt 0:00:41]} Nd7 {[%emt 0:00:29]} 4. O-O {[%emt 0:00:36]} a6 {[%emt 0:00:14]} 5. Bd3 {[%emt 0:00:22]} Ngf6 {[%emt 0:00:07]} 6. Re1 {[%emt 0:00:43]} e6 {[%emt 0:00:07]} 7. c3 {[%emt 0:03:34]} b5 {[%emt 0:01:55]} 8. a4 {[%emt 0:06:26]} c4 {[%emt 0:13:53]} 9. Bc2 {[%emt 0:01:12]} Bb7 {[%emt 0:00:06]} 10. axb5 {[%emt 0:05:28]} axb5 {[%emt 0:00:02]} 11. Rxa8 {[%emt 0:00:08]} Qxa8 {[%emt 0:00:05]} 12. Na3 {[%emt 0:01:40]} Bxe4 {[%emt 0:02:28]} 13. Bxe4 {[%emt 0:07:13]} Nxe4 {[%emt 0:00:06]} 14. Nxb5 {[%emt 0:22:22]} Qb7 {[%emt 0:02:46]} 15. Qa4 {[%emt 0:06:32]} d5 {[%emt 0:02:59]} 16. Rxe4 {[%emt 0:01:14]} dxe4 {[%emt 0:00:07]} 17. Ne5 {[%emt 0:00:14]} Bc5 {[%emt 0:18:53]} 18. Nxd7 {[%emt 0:15:25]} Kxd7 {[%emt 0:02:38]} 19. d4 {[%emt 0:04:56]} Ra8 {[%emt 0:06:26]} 20. Na7+ {[%emt 0:05:11]} Ke7 {[%emt 0:01:23]} 21. dxc5 {[%emt 0:00:17]} Qxa7 {[%emt 0:03:09]} 22. Qxc4 {[%emt 0:01:58]} Rd8 {[%emt 0:00:22]} 23. g3 {[%emt 0:02:33]} Rd1+ {[%emt 0:00:22]} 24. Kg2 {[%emt 0:00:05]} Rxc1 {[%emt 0:00:04]} 25. c6 {[%emt 0:00:18]} Rc2 {[%emt 0:00:59]} 26. Qb4+ {[%emt 0:02:21]} Kf6 {[%emt 0:00:08]} 27. Kh3 {[%emt 0:00:22]} Qxf2 {[%emt 0:00:16]} 28. Qxe4 {[%emt 0:00:28]} Qxh2+ {[%emt 0:00:21]} 29. Kg4 {[%emt 0:00:05]} h5+ {[%emt 0:00:09]} 30. Kf4 {[%emt 0:00:21]} g5+ {[%emt 0:00:52] Ke5+ Kxe5} 0-1

[Event "11th LCC FIDE Open 2019"]
[Site "London"]
[Date "2019.11.30"]
[Round "3.21"]
[White "Ethelontis, Alexandros N"]
[Black "Zapolskis, Antanas"]
[Result "1-0"]
[ECO "A27"]
[WhiteElo "2139"]
[BlackElo "2280"]
[Annotator "RC"]
[PlyCount "51"]
[EventDate "2019.11.29"]
[EventType "swiss"]
[EventCountry "ENG"]
[SourceTitle "playchess.com"]
[Source "ChessBase"]
[SourceQuality "1"]
[TimeControl "40/5400+30:1800+30"]

1. c4 {[%emt 0:00:00]} e5 {[%emt 0:00:00]} 2. g3 {[%emt 0:00:00]} Nc6 {[%emt 0:01:32]} 3. Nc3 {[%emt 0:00:23]} f5 {[%emt 0:02:15]} 4. Nf3 {[%emt 0:04:31]} Nf6 {[%emt 0:06:23]} 5. d4 {[%emt 0:01:33]} e4 {[%emt 0:03:37]} 6. Nh4 {[%emt 0:00:31]} d6 {[%emt 0:00:34]} 7. Bg5 {[%emt 0:03:16]} Be7 {[%emt 0:01:08]} 8. Bh3 {[%emt 0:07:18]} Ng4 {[%emt 0:07:39]} 9. Bxe7 {[%emt 0:02:26]} Qxe7 {[%emt 0:00:09]} 10. Nd5 {[%emt 0:09:57]} Qf7 {[%emt 0:01:33]} 11. f3 {[%emt 0:07:34]} Nf6 {[%emt 0:10:59]} 12. fxe4 {[%emt 0:06:10]} Nxe4 {[%emt 0:05:48]} 13. O-O {[%emt 0:06:58]} g6 {[%emt 0:02:13]} 14. Bg2 {[%emt 0:06:30]} Nf6 {[%emt 0:03:35]} 15. e4 {[%emt 0:02:57]} Nxd5 {[%emt 0:02:12]} 16. cxd5 {[%emt 0:09:17]} Ne7 {[%emt 0:03:10]} 17. Rc1 {[%emt 0:01:27]} Ng8 {[%emt 0:14:41]} 18. Rc3 {[%emt 0:09:57]} Nf6 {[%emt 0:00:59]} 19. Qc1 {[%emt 0:02:25]} Kd8 {[%emt 0:03:42]} 20. exf5 {[%emt 0:10:19]} g5 {[%emt 0:03:52]} 21. Qxg5 {[%emt 0:01:42]} Rg8 {[%emt 0:00:13]} 22. Qh6 {[%emt 0:01:52]} Nxd5 {[%emt 0:04:23]} 23. Bxd5 {[%emt 0:01:01]} Qxd5 {[%emt 0:00:34]} 24. Qf6+ {[%emt 0:00:13]} Kd7 {[%emt 0:00:25]} 25. Re1 {[%emt 0:00:47]} c5 {[%emt 0:09:08]} 26. Rxc5 {[%emt 0:01:09]} 1-0

[Event "11th LCC FIDE Open 2019"]
[Site "London"]
[Date "2019.11.30"]
[Round "3.22"]
[White "Semprun Martinez, Fernando"]
[Black "Berry, Neil"]
[Result "0-1"]
[ECO "C99"]
[WhiteElo "2071"]
[BlackElo "2250"]
[Annotator "RC"]
[PlyCount "86"]
[EventDate "2019.11.29"]
[EventType "swiss"]
[EventCountry "ENG"]
[SourceTitle "playchess.com"]
[Source "ChessBase"]
[SourceQuality "1"]
[TimeControl "40/5400+30:1800+30"]

1. e4 {[%emt 0:00:00]} e5 {[%emt 0:06:38]} 2. Nf3 {[%emt 0:00:00]} Nc6 {[%emt 0:00:07]} 3. Bb5 {[%emt 0:00:18]} a6 {[%emt 0:00:19]} 4. Ba4 {[%emt 0:00:07]} Nf6 {[%emt 0:00:14]} 5. O-O {[%emt 0:00:08]} Be7 {[%emt 0:00:15]} 6. Re1 {[%emt 0:02:16]} b5 {[%emt 0:00:39]} 7. Bb3 {[%emt 0:00:01]} d6 {[%emt 0:00:13]} 8. c3 {[%emt 0:00:09]} O-O {[%emt 0:00:08]} 9. h3 {[%emt 0:00:01]} Na5 {[%emt 0:01:08]} 10. Bc2 {[%emt 0:00:02]} c5 {[%emt 0:00:10]} 11. d4 {[%emt 0:00:08]} Qc7 {[%emt 0:01:07]} 12. Nbd2 {[%emt 0:01:40]} cxd4 {[%emt 0:01:51]} 13. cxd4 {[%emt 0:00:00]} Bd7 {[%emt 0:03:55]} 14. Nf1 {[%emt 0:03:07]} Rfe8 {[%emt 0:05:52]} 15. Ne3 {[%emt 0:10:58]} Rac8 {[%emt 0:12:56]} 16. Bd3 {[%emt 0:10:01]} Nc6 {[%emt 0:00:00]} 17. d5 {[%emt 0:00:10]} Nb4 {[%emt 0:01:38]} 18. Bb1 {[%emt 0:12:24]} a5 {[%emt 0:00:44]} 19. a3 {[%emt 0:12:32]} Na6 {[%emt 0:00:35]} 20. Bd2 {[%emt 0:02:53]} a4 {[%emt 0:12:12]} 21. Bc2 {[%emt 0:04:20]} Bd8 {[%emt 0:03:46]} 22. Rc1 {[%emt 0:00:53]} Qb7 {[%emt 0:01:20]} 23. Bb4 {[%emt 0:08:57]} Nc5 {[%emt 0:06:00]} 24. Nd2 {[%emt 0:02:15]} Bb6 {[%emt 0:03:15]} 25. Qf3 {[%emt 0:02:24]} Rc7 {[%emt 0:05:31]} 26. Bb1 {[%emt 0:02:11]} Qc8 {[%emt 0:13:38]} 27. Rc3 {[%emt 0:07:25]} Nb7 {[%emt 0:04:41]} 28. Rec1 {[%emt 0:00:40]} Rxc3 {[%emt 0:00:54]} 29. Rxc3 {[%emt 0:00:14]} Qd8 {[%emt 0:00:54]} 30. Bd3 {[%emt 0:04:08]} Nc5 {[%emt 0:03:42]} 31. Be2 {[%emt 0:05:11]} g6 {[%emt 0:01:18]} 32. b3 {[%emt 0:04:52]} axb3 {[%emt 0:03:02]} 33. Bd1 {[%emt 0:03:46]} b2 {[%emt 0:03:24]} 34. Bc2 Qe7 {[%emt 0:02:14]} 35. Nd1 {[%emt 0:00:45]} Na6 {[%emt 0:01:28]} 36. Nxb2 {[%emt 0:01:41]} Bd4 {[%emt 0:01:02]} 37. Nd1 {[%emt 0:01:09]} Nxb4 {[%emt 0:00:31]} 38. axb4 {[%emt 0:00:01]} Bxc3 39. Nxc3 {[%emt 0:00:01]} Rc8 {[%emt 0:00:42]} 40. Ndb1 {[%emt 0:00:25]} Ne8 {[%emt 0:00:38]} 41. Bd3 {[%emt 0:30:10]} Qg5 {[%emt 0:02:11]} 42. Ne2 {[%emt 0:00:00]} Ra8 {[%emt 0:04:39]} 43. Kh2 {[%emt 0:00:00]} Ra4 {[%emt 0:01:04]} 0-1

[Event "11th LCC FIDE Open 2019"]
[Site "London"]
[Date "2019.11.30"]
[Round "3.23"]
[White "Drastik, Penelope"]
[Black "Papadiamandis, Elliot"]
[Result "0-1"]
[ECO "D80"]
[WhiteElo "1759"]
[BlackElo "2220"]
[Annotator "RC"]
[PlyCount "90"]
[EventDate "2019.11.29"]
[EventType "swiss"]
[EventCountry "ENG"]
[SourceTitle "playchess.com"]
[Source "ChessBase"]
[SourceQuality "1"]
[TimeControl "40/5400+30:1800+30"]

1. d4 {[%emt 0:00:00]} Nf6 {[%emt 0:00:00]} 2. c4 {[%emt 0:00:00]} g6 {[%emt 0:00:12]} 3. Nc3 {[%emt 0:00:00]} d5 {[%emt 0:00:19]} 4. Bg5 {[%emt 0:00:00]} Bg7 {[%emt 0:00:28]} 5. Bxf6 {[%emt 0:00:00]} Bxf6 {[%emt 0:00:09]} 6. cxd5 {[%emt 0:00:00]} c6 {[%emt 0:10:42]} 7. Rc1 {[%emt 0:00:22]} O-O {[%emt 0:02:26]} 8. dxc6 {[%emt 0:07:32]} Qb6 {[%emt 0:12:26]} 9. e3 {[%emt 0:14:55]} Qxb2 {[%emt 0:10:11]} 10. cxb7 {[%emt 0:08:22]} Bxb7 {[%emt 0:01:35]} 11. Nge2 {[%emt 0:00:30]} Qb6 {[%emt 0:06:43]} 12. Nf4 {[%emt 0:08:18]} e5 {[%emt 0:02:34]} 13. dxe5 {[%emt 0:07:44]} Bxe5 {[%emt 0:01:43]} 14. Qb3 {[%emt 0:03:58]} Rc8 {[%emt 0:08:47]} 15. Bc4 {[%emt 0:22:23]} Qxb3 {[%emt 0:12:04]} 16. axb3 {[%emt 0:00:17]} Bxf4 {[%emt 0:00:53]} 17. exf4 {[%emt 0:00:08]} Bxg2 {[%emt 0:01:04]} 18. Rg1 {[%emt 0:00:20]} Bc6 {[%emt 0:01:17]} 19. f5 {[%emt 0:01:37]} Kf8 {[%emt 0:00:46]} 20. f4 {[%emt 0:03:06]} Nd7 {[%emt 0:01:41]} 21. fxg6 {[%emt 0:01:05]} hxg6 {[%emt 0:00:29]} 22. Kf2 {[%emt 0:01:50]} Nf6 {[%emt 0:03:52]} 23. Rg5 {[%emt 0:02:23]} Rd8 {[%emt 0:02:14]} 24. Re1 {[%emt 0:06:20]} Rd4 {[%emt 0:01:40]} 25. Ke3 {[%emt 0:01:00]} Rd7 {[%emt 0:01:45]} 26. Ra1 {[%emt 0:01:53]} Re8+ {[%emt 0:00:39]} 27. Kf2 {[%emt 0:00:24]} Rd2+ {[%emt 0:00:45]} 28. Kf1 {[%emt 0:00:46]} Re7 {[%emt 0:04:15]} 29. Ra6 {[%emt 0:03:07]} Rc7 {[%emt 0:00:43]} 30. Ke1 {[%emt 0:01:14]} Rxh2 {[%emt 0:04:42]} 31. Rc5 {[%emt 0:00:46]} Re7+ {[%emt 0:01:31]} 32. Re5 {[%emt 0:01:12]} Rc7 {[%emt 0:00:48]} 33. Rc5 {[%emt 0:00:49]} Rh1+ {[%emt 0:01:52]} 34. Kd2 {[%emt 0:00:43]} Rd7+ {[%emt 0:00:06]} 35. Kc2 {[%emt 0:01:41]} Ne4 {[%emt 0:00:09]} 36. Nxe4 {[%emt 0:00:58]} Bxe4+ {[%emt 0:00:05]} 37. Kc3 {[%emt 0:00:14]} Rh3+ {[%emt 0:01:55]} 38. Kb4 {[%emt 0:00:27]} Rf3 {[%emt 0:00:37]} 39. Rca5 {[%emt 0:00:15]} Rxf4 {[%emt 0:00:48]} 40. Rxa7 {[%emt 0:00:02]} Rxa7 {[%emt 0:00:34]} 41. Rxa7 {[%emt 0:30:03]} g5 {[%emt 0:32:22]} 42. Kc5 {[%emt 0:02:03]} g4 {[%emt 0:00:00]} 43. b4 {[%emt 0:00:00]} g3 {[%emt 0:00:00]} 44. b5 {[%emt 0:00:00]} g2 {[%emt 0:00:00]} 45. Ra1 {[%emt 0:00:00]} Rh4 {[%emt 0:00:00]} 0-1

[Event "11th LCC FIDE Open 2019"]
[Site "London"]
[Date "2019.11.30"]
[Round "3.24"]
[White "Bukojemski, Adam"]
[Black "Ahn, Sungmin"]
[Result "1-0"]
[ECO "B41"]
[WhiteElo "2211"]
[BlackElo "1780"]
[Annotator "RC"]
[PlyCount "107"]
[EventDate "2019.11.29"]
[EventType "swiss"]
[EventCountry "ENG"]
[SourceTitle "playchess.com"]
[Source "ChessBase"]
[SourceQuality "1"]
[TimeControl "40/5400+30:1800+30"]

1. e4 {[%emt 0:00:15]} c5 {[%emt 0:00:00]} 2. Nf3 {[%emt 0:02:17]} e6 {[%emt 0:00:00]} 3. c4 {[%emt 0:00:07]} a6 {[%emt 0:01:20]} 4. Nc3 {[%emt 0:00:15]} Nc6 {[%emt 0:01:36]} 5. Be2 {[%emt 0:00:49]} Nf6 {[%emt 0:01:08]} 6. d4 {[%emt 0:00:14]} cxd4 {[%emt 0:00:15]} 7. Nxd4 {[%emt 0:00:02]} Qc7 {[%emt 0:00:09]} 8. O-O {[%emt 0:01:09]} Bd6 {[%emt 0:15:42]} 9. g3 {[%emt 0:00:47]} Nxd4 {[%emt 0:00:28]} 10. Qxd4 {[%emt 0:00:18]} b6 {[%emt 0:02:47]} 11. Be3 {[%emt 0:02:12]} Be5 {[%emt 0:06:41]} 12. Qxb6 {[%emt 0:05:29]} Qxb6 {[%emt 0:00:34]} 13. Bxb6 {[%emt 0:00:01]} Bxc3 {[%emt 0:00:08]} 14. bxc3 {[%emt 0:00:05]} Nxe4 {[%emt 0:00:03]} 15. Bd4 {[%emt 0:03:07]} f6 {[%emt 0:09:23]} 16. f3 {[%emt 0:00:25]} Ng5 {[%emt 0:01:12]} 17. Rab1 {[%emt 0:00:31]} d6 {[%emt 0:02:52]} 18. Rb6 {[%emt 0:01:08]} Kd7 {[%emt 0:04:04]} 19. h4 {[%emt 0:03:56]} Nf7 {[%emt 0:01:06]} 20. f4 {[%emt 0:00:20]} e5 {[%emt 0:03:40]} 21. Bf2 {[%emt 0:05:04]} Re8 {[%emt 0:03:48]} 22. Bd1 {[%emt 0:04:53]} Kc7 {[%emt 0:04:43]} 23. Ba4 {[%emt 0:00:17]} Bb7 {[%emt 0:04:19]} 24. Bxe8 {[%emt 0:00:15]} Rxe8 {[%emt 0:00:02]} 25. Rfb1 {[%emt 0:01:11]} Bc8 {[%emt 0:00:33]} 26. Rb8 {[%emt 0:01:37]} Nd8 {[%emt 0:03:03]} 27. fxe5 {[%emt 0:05:07]} Rxe5 {[%emt 0:01:55]} 28. R8b2 {[%emt 0:00:13]} Nc6 {[%emt 0:01:12]} 29. Bb6+ {[%emt 0:01:27]} Kd7 {[%emt 0:00:16]} 30. Rd1 {[%emt 0:03:19]} Ke7 {[%emt 0:00:39]} 31. Bc7 {[%emt 0:00:36]} Re6 {[%emt 0:00:32]} 32. Rbd2 {[%emt 0:00:14]} Re3 {[%emt 0:01:21]} 33. Bxd6+ {[%emt 0:00:30]} Kf7 {[%emt 0:00:04]} 34. Rd3 {[%emt 0:03:06]} Re4 {[%emt 0:00:02]} 35. c5 {[%emt 0:00:16]} Be6 {[%emt 0:00:40]} 36. R3d2 {[%emt 0:02:26]} Rc4 {[%emt 0:01:30]} 37. Rb1 {[%emt 0:03:20]} Rxc3 {[%emt 0:01:30]} 38. Rb7+ {[%emt 0:00:38]} Kg6 {[%emt 0:00:24]} 39. Rb6 {[%emt 0:04:40]} Na5 {[%emt 0:00:21]} 40. Rxa6 {[%emt 0:00:08]} Nc4 {[%emt 0:00:15]} 41. Rd4 {[%emt 0:33:01]} Ne3 {[%emt 0:31:55]} 42. Kf2 {[%emt 0:04:35]} Ng4+ {[%emt 0:00:14]} 43. Ke1 {[%emt 0:01:03]} Rc2 {[%emt 0:00:36]} 44. Bf4 {[%emt 0:10:25]} Bxa2 {[%emt 0:02:21]} 45. Rd2 {[%emt 0:03:33]} Rc1+ {[%emt 0:00:18]} 46. Rd1 {[%emt 0:00:08]} Rc2 {[%emt 0:00:45]} 47. Rc1 {[%emt 0:02:03]} Rg2 {[%emt 0:01:56]} 48. c6 {[%emt 0:01:33]} Bd5 {[%emt 0:01:59]} 49. h5+ {[%emt 0:01:48]} Kxh5 {[%emt 0:13:32]} 50. Ra5 {[%emt 0:00:20]} g5 {[%emt 0:00:26]} 51. Rxd5 {[%emt 0:00:08]} Nh2 {[%emt 0:00:41]} 52. g4+ {[%emt 0:00:14]} Kxg4 {[%emt 0:00:20]} 53. Bxh2 {[%emt 0:00:04]} Rxh2 {[%emt 0:00:13]} 54. c7 {[%emt 0:00:19]} 1-0